fUST/lending_fUST_20241205
["ID","MTS","AMOUNT","RATE_DAILY","PERIOD"]
[344373540,1733390069963,-500.0,0.00021917,2]
[344373541,1733390069992,-500.0,0.00021917,2]
[344373542,1733390070020,-500.0,0.00021917,2]
[344373543,1733390070048,-511.489054,0.00021917,2]
[344373544,1733390070079,-500.0,0.00021917,2]
[344373545,1733390070111,-500.0,0.00021917,2]
[344373546,1733390070138,-263.21503756,0.00021917,2]
[344373547,1733390070165,-500.0,0.00021917,2]
[344373548,1733390070192,-500.0,0.00021917,2]
[344373549,1733390070220,-500.0,0.00021917,2]
[344373550,1733390070249,-507.9961071,0.00021917,2]
[344373551,1733390070277,-158.06031,0.00021917,2]
[344373552,1733390070304,-500.0,0.00021917,2]
[344373553,1733390070331,-500.0,0.00021917,2]
[344373554,1733390070360,-500.0,0.00021917,2]
[344373555,1733390070386,-500.0,0.00021917,2]
[344373556,1733390070412,-500.0,0.00021917,2]
[344373557,1733390070438,-500.0,0.00021917,2]
[344373558,1733390070463,-500.0,0.00021917,2]
[344373559,1733390070492,-500.0,0.00021917,2]
[344373560,1733390070517,-505.94584447,0.00021917,2]
[344373561,1733390070544,-425.74852282,0.00021917,2]
[344373562,1733390070570,-575.57290119,0.00021917,2]
[344373563,1733390070596,-500.0,0.00021917,2]
[344373564,1733390070623,-559.55266107,0.00021917,2]
[344373565,1733390070649,-500.0,0.00021917,2]
[344373566,1733390070676,-500.0,0.00021917,2]
[344373567,1733390070702,-720.5,0.00021917,2]
[344373568,1733390070728,-500.0,0.00021917,2]
[344373569,1733390070755,-151.0,0.00021917,2]
[344373570,1733390070781,-151.0,0.00021917,2]
[344373571,1733390070807,-151.0,0.00021917,2]
[344373572,1733390070833,-151.0,0.00021917,2]
[344373573,1733390070860,-151.0,0.00021917,2]
[344373574,1733390070888,-523.76250696,0.00021917,2]
[344373575,1733390070915,-151.0,0.00021917,2]
[344373576,1733390070943,-151.0,0.00021917,2]
[344373577,1733390071039,-500.0,0.00021917,2]
[344373578,1733390071067,-500.0,0.00021917,2]
[344373579,1733390071097,-500.0,0.00021917,2]
[344373580,1733390071125,-500.0,0.00021917,2]
[344373581,1733390071152,-500.0,0.00021917,2]
[344373582,1733390071181,-504.16280801,0.00021917,2]
[344373583,1733390071208,-500.0,0.00021917,2]
[344373584,1733390071236,-500.0,0.00021917,2]
[344373585,1733390071263,-500.0,0.00021917,2]
[344373586,1733390071290,-500.0,0.00021917,2]
[344373587,1733390071317,-151.0,0.00021917,2]
[344373588,1733390071343,-151.0,0.00021917,2]
[344373589,1733390071369,-500.0,0.00021917,2]
[344373590,1733390071396,-151.0,0.00021917,2]
[344373591,1733390071424,-500.0,0.00021917,2]
[344373592,1733390071450,-511.05284678,0.00021917,2]
[344373593,1733390071477,-500.0,0.00021917,2]
[344373594,1733390071506,-500.0,0.00021917,2]
[344373595,1733390071533,-500.0,0.00021917,2]
[344373596,1733390071562,-500.0,0.00021917,2]
[344373597,1733390071590,-500.0,0.00021917,2]
[344373598,1733390071616,-500.0,0.00021917,2]
[344373599,1733390071643,-616.13,0.00021917,2]
[344373600,1733390071671,-500.0,0.00021917,2]
[344373601,1733390071698,-500.0,0.00021917,2]
[344373602,1733390071725,-511.46240846,0.00021917,2]
[344373603,1733390071752,-510.85688149,0.00021917,2]
[344373604,1733390071787,-500.0,0.00021917,2]
[344373605,1733390071812,-500.0,0.00021917,2]
[344373606,1733390071838,-500.0,0.00021917,2]
[344373607,1733390071865,-500.0,0.00021917,2]
[344373608,1733390071892,-600.61780474,0.00021917,2]
[344373609,1733390071919,-500.0,0.00021917,2]
[344373610,1733390071944,-500.0,0.00021917,2]
[344373611,1733390071971,-186.522458,0.00021917,2]
[344373612,1733390071999,-186.522458,0.00021917,2]
[344373613,1733390072026,-186.522458,0.00021917,2]
[344373614,1733390072054,-186.522458,0.00021917,2]
[344373615,1733390072084,-186.522458,0.00021917,2]
[344373616,1733390072114,-186.522458,0.00021917,2]
[344373617,1733390072144,-186.522458,0.00021917,2]
[344373618,1733390072173,-500.0,0.00021917,2]
[344373619,1733390072202,-186.522458,0.00021917,2]
[344373620,1733390072230,-186.522458,0.00021917,2]
[344373621,1733390072330,-186.522458,0.00021917,2]
[344373622,1733390072358,-186.522458,0.00021917,2]
[344373623,1733390072385,-500.0,0.00021917,2]
[344373624,1733390072411,-186.522458,0.00021917,2]
[344373625,1733390072438,-186.522458,0.00021917,2]
[344373626,1733390072465,-186.522458,0.00021917,2]
[344373627,1733390072496,-151.0,0.00021917,2]
[344373628,1733390072522,-500.0,0.00021917,2]
[344373629,1733390072548,-151.0,0.00021917,2]
[344373630,1733390072575,-151.0,0.00021917,2]
[344373631,1733390072601,-500.0,0.00021917,2]
[344373632,1733390072628,-500.0,0.00021917,2]
[344373633,1733390072655,-151.0,0.00021917,2]
[344373634,1733390072682,-151.0,0.00021917,2]
[344373635,1733390072709,-151.0,0.00021917,2]
[344373636,1733390072735,-151.0,0.00021917,2]
[344373637,1733390072764,-151.0,0.00021917,2]
[344373638,1733390072791,-151.0,0.00021917,2]
[344373639,1733390072817,-151.0,0.00021917,2]
[344373640,1733390072843,-500.0,0.00021917,2]
[344373641,1733390072870,-242.29554,0.00021917,2]
[344373642,1733390072897,-151.0,0.00021917,2]
[344373643,1733390072923,-500.0,0.00021917,2]
[344373644,1733390072950,-151.0,0.00021917,2]
[344373645,1733390072978,-227.084034,0.00021917,2]
[344373647,1733390073006,-500.0,0.00021917,2]
[344373648,1733390073033,-505.65666865,0.00021917,2]
[344373649,1733390073061,-514.26115386,0.00021917,2]
[344373650,1733390073094,-500.0,0.00021917,2]
[344373651,1733390073123,-500.0,0.00021917,2]
[344373652,1733390073151,-324.48476934,0.00021917,2]
[344373653,1733390073181,-551.91,0.00021917,2]
[344373654,1733390073209,-395.10980581,0.00021917,2]
[344373655,1733390073239,-500.0,0.00021917,2]
[344373656,1733390073268,-500.0,0.00021917,2]
[344373657,1733390073296,-151.0,0.00021917,2]
[344373658,1733390073322,-151.0,0.00021917,2]
[344373659,1733390073349,-151.0,0.00021917,2]
[344373660,1733390073375,-500.0,0.00021917,2]
[344373661,1733390073402,-160.61571,0.00021917,2]
[344373662,1733390073429,-151.0,0.00021917,2]
[344373663,1733390073457,-151.0,0.00021917,2]
[344373664,1733390073551,-151.0,0.00021917,2]
[344373665,1733390073579,-151.0,0.00021917,2]
[344373666,1733390073607,-151.0,0.00021917,2]
[344373667,1733390073636,-248.719721,0.00021917,2]
[344373668,1733390073663,-151.0,0.00021917,2]
[344373669,1733390073691,-500.0,0.00021917,2]
[344373670,1733390073720,-151.0,0.00021917,2]
[344373671,1733390073749,-151.0,0.00021917,2]
[344373672,1733390073777,-151.0,0.00021917,2]
[344373673,1733390073805,-151.0,0.00021917,2]
[344373674,1733390073832,-500.0,0.00021917,2]
[344373675,1733390073859,-187.435753,0.00021917,2]
[344373676,1733390073888,-500.0,0.00021917,2]
[344373677,1733390073917,-500.0,0.00021917,2]
[344373678,1733390073945,-151.0,0.00021917,2]
[344373679,1733390073975,-151.0,0.00021917,2]
[344373680,1733390074004,-151.0,0.00021917,2]
[344373681,1733390074032,-187.27092,0.00021917,2]
[344373682,1733390074061,-538.95375761,0.00021917,2]
[344373683,1733390074091,-500.0,0.00021917,2]
[344373684,1733390074123,-500.0,0.00021917,2]
[344373685,1733390074154,-500.0,0.00021917,2]
[344373686,1733390074183,-500.0,0.00021917,2]
[344373687,1733390074215,-500.0,0.00021917,2]
[344373688,1733390074252,-500.0,0.00021917,2]
[344373689,1733390074280,-209.76183611,0.00021917,2]
[344373690,1733390074307,-615.35993336,0.00021917,2]
[344373691,1733390074334,-501.52196096,0.00021917,2]
[344373692,1733390074363,-503.97452967,0.00021917,2]
[344373693,1733390074390,-500.0,0.00021917,2]
[344373694,1733390074416,-500.0,0.00021917,2]
[344373695,1733390074443,-500.0,0.00021917,2]
[344373696,1733390074470,-500.0,0.00021917,2]
[344373697,1733390074499,-504.01060569,0.00021917,2]
[344373698,1733390074525,-500.0,0.00021917,2]
[344373699,1733390074552,-151.0,0.00021917,2]
[344373700,1733390074580,-164.038992,0.00021917,2]
[344373701,1733390074613,-503.78930148,0.00021917,2]
[344373702,1733390074640,-500.0,0.00021917,2]
[344373703,1733390074668,-500.0,0.00021917,2]
[344373704,1733390074695,-500.0,0.00021917,2]
[344373705,1733390074789,-500.0,0.00021917,2]
[344373706,1733390074817,-500.0,0.00021917,2]
[344373707,1733390074844,-501.71323305,0.00021917,2]
[344373708,1733390074871,-500.0,0.00021917,2]
[344373709,1733390074898,-500.0,0.00021917,2]
[344373710,1733390074925,-510.34354797,0.00021917,2]
[344373711,1733390074953,-501.51311532,0.00021917,2]
[344373712,1733390074979,-500.0,0.00021917,2]
[344373713,1733390075008,-151.0,0.00021917,2]
[344373714,1733390075036,-151.0,0.00021917,2]
[344373715,1733390075064,-151.0,0.00021917,2]
[344373716,1733390075095,-151.0,0.00021917,2]
[344373717,1733390075123,-151.0,0.00021917,2]
[344373718,1733390075151,-151.0,0.00021917,2]
[344373719,1733390075182,-151.0,0.00021917,2]
[344373720,1733390075209,-500.0,0.00021917,2]
[344373721,1733390075236,-500.0,0.00021917,2]
[344373722,1733390075265,-500.0,0.00021917,2]
[344373723,1733390075291,-151.0,0.00021917,2]
[344373724,1733390075317,-501.32853129,0.00021917,2]
[344373725,1733390075343,-273.810847,0.00021917,2]
[344373726,1733390075370,-500.0,0.00021917,2]
[344373727,1733390075396,-500.0,0.00021917,2]
[344373728,1733390075422,-500.0,0.00021917,2]
[344373729,1733390075448,-500.0,0.00021917,2]
[344373730,1733390075476,-500.0,0.00021917,2]
[344373731,1733390075504,-500.0,0.00021917,2]
[344373732,1733390075532,-500.0,0.00021917,2]
[344373733,1733390075560,-500.0,0.00021917,2]
[344373734,1733390075587,-500.0,0.00021917,2]
[344373735,1733390075615,-500.0,0.00021917,2]
[344373736,1733390075642,-500.96778518,0.00021917,2]
[344373737,1733390075669,-500.0,0.00021917,2]
[344373738,1733390075696,-529.18214911,0.00021917,2]
[344373739,1733390075722,-500.0,0.00021917,2]
[344373740,1733390075749,-500.0,0.00021917,2]
[344373741,1733390075777,-502.59211328,0.00021917,2]
[344373742,1733390075808,-500.0,0.00021917,2]
[344373743,1733390075837,-500.0,0.00021917,2]
[344373744,1733390075864,-500.0,0.00021917,2]
[344373745,1733390075954,-505.29097752,0.00021917,2]
[344373746,1733390075982,-151.0,0.00021917,2]
[344373747,1733390076010,-163.556876,0.00021917,2]
[344373748,1733390076038,-500.0,0.00021917,2]
[344373749,1733390076066,-500.0,0.00021917,2]
[344373750,1733390076096,-502.86654926,0.00021917,2]
[344373751,1733390076123,-500.0,0.00021917,2]
[344373752,1733390076151,-577.66144142,0.00021917,2]
[344373753,1733390076178,-503.71690921,0.00021917,2]
[344373754,1733390076204,-500.0,0.00021917,2]
[344373755,1733390076230,-500.0,0.00021917,2]
[344373756,1733390076258,-500.0,0.00021917,2]
[344373757,1733390076284,-500.0,0.00021917,2]
[344373758,1733390076310,-500.0,0.00021917,2]
[344373759,1733390076337,-500.0,0.00021917,2]
[344373760,1733390076363,-500.0,0.00021917,2]
[344373761,1733390076389,-500.0,0.00021917,2]
[344373762,1733390076416,-500.0,0.00021917,2]
[344373763,1733390076442,-500.0,0.00021917,2]
[344373764,1733390076469,-500.0,0.00021917,2]
[344373765,1733390076496,-504.67791085,0.00021917,2]
[344373766,1733390076523,-500.0,0.00021917,2]
[344373767,1733390076549,-505.10157609,0.00021917,2]
[344373768,1733390076576,-745.86,0.00021917,2]
[344373769,1733390076602,-505.00254944,0.00021917,2]
[344373770,1733390076628,-500.0,0.00021917,2]
[344373771,1733390076654,-356.39065362,0.00021917,2]
[344373772,1733390076681,-500.0,0.00021917,2]
[344373773,1733390076708,-500.0,0.00021917,2]
[344373774,1733390076735,-500.0,0.00021917,2]
[344373775,1733390076763,-500.0,0.00021917,2]
[344373776,1733390076791,-576.25,0.00021917,2]
[344373777,1733390076818,-513.05403765,0.00021917,2]
[344373778,1733390076845,-500.0,0.00021917,2]
[344373780,1733390076872,-245.92184147,0.00021917,2]
[344373781,1733390076899,-500.0,0.00021917,2]
[344373782,1733390076927,-500.0,0.00021917,2]
[344373783,1733390076956,-502.17,0.00021917,2]
[344373784,1733390076984,-500.0,0.00021917,2]
[344373785,1733390077089,-500.0,0.00021917,2]
[344373786,1733390077117,-531.1433281,0.00021917,2]
[344373787,1733390077146,-521.8141467,0.00021917,2]
[344373788,1733390077174,-492.36819631,0.00021917,2]
[344373789,1733390077201,-500.0,0.00021917,2]
[344373790,1733390077227,-528.19860102,0.00021917,2]
[344373791,1733390077259,-297.14848612,0.00021917,2]
[344373792,1733390077287,-500.0,0.00021917,2]
[344373793,1733390077314,-500.0,0.00021917,2]
[344373794,1733390077344,-500.0,0.00021917,2]
[344373795,1733390077371,-151.0,0.00021917,2]
[344373796,1733390077399,-500.0,0.00021917,2]
[344373797,1733390077426,-500.0,0.00021917,2]
[344373798,1733390077453,-500.0,0.00021917,2]
[344373799,1733390077480,-500.0,0.00021917,2]
[344373800,1733390077509,-500.0,0.00021917,2]
[344373801,1733390077534,-500.0,0.00021917,2]
[344373802,1733390077560,-520.47218967,0.00021917,2]
[344373803,1733390077588,-551.94661353,0.00021917,2]
[344373804,1733390077616,-500.0,0.00021917,2]
[344373805,1733390077645,-500.0,0.00021917,2]
[344373806,1733390077675,-503.1885012,0.00021917,2]
[344373807,1733390077705,-754.13,0.00021917,2]
[344373808,1733390077733,-500.0,0.00021917,2]
[344373809,1733390077764,-310.46604598,0.00021917,2]
[344373810,1733390077792,-500.0,0.00021917,2]
[344373811,1733390077820,-513.40695836,0.00021917,2]
[344373812,1733390077850,-500.0,0.00021917,2]
[344373813,1733390077878,-500.0,0.00021917,2]
[344373814,1733390077906,-531.94,0.00021917,2]
[344373815,1733390077934,-514.72,0.00021917,2]
[344373816,1733390077962,-500.0,0.00021917,2]
[344373817,1733390077989,-298.684816,0.00021917,2]
[344373818,1733390078017,-500.0,0.00021917,2]
[344373819,1733390078046,-500.0,0.00021917,2]
[344373820,1733390078074,-503.02712429,0.00021917,2]
[344373821,1733390078107,-500.0,0.00021917,2]
[344373822,1733390078205,-500.0,0.00021917,2]
[344373823,1733390078248,-500.0,0.00021917,2]
[344373824,1733390078280,-500.0,0.00021917,2]
[344373825,1733390078308,-500.0,0.00021917,2]
[344373826,1733390078336,-163.858884,0.00021917,2]
[344373827,1733390078363,-500.0,0.00021917,2]
[344373828,1733390078390,-500.0,0.00021917,2]
[344373829,1733390078417,-500.0,0.00021917,2]
[344373830,1733390078445,-500.0,0.00021917,2]
[344373831,1733390078472,-500.0,0.00021917,2]
[344373832,1733390078502,-500.0,0.00021917,2]
[344373833,1733390078529,-500.0,0.00021917,2]
[344373834,1733390078558,-8605.61,0.00021917,2]
[344373835,1733390078586,-502.19340048,0.00021917,2]
[344373836,1733390078612,-500.0,0.00021917,2]
[344373837,1733390078639,-500.0,0.00021917,2]
[344373838,1733390078666,-500.0,0.00021917,2]
[344373839,1733390078694,-528.76417528,0.00021917,2]
[344373840,1733390078720,-521.11606384,0.00021917,2]
[344373841,1733390078754,-526.92067014,0.00021917,2]
[344373842,1733390078781,-671.11,0.00021917,2]
[344373843,1733390078806,-500.0,0.00021917,2]
[344373844,1733390078833,-501.32132588,0.00021917,2]
[344373845,1733390078860,-500.0,0.00021917,2]
[344373846,1733390078888,-500.0,0.00021917,2]
[344373847,1733390078914,-500.0,0.00021917,2]
[344373848,1733390078941,-500.0,0.00021917,2]
[344373849,1733390078968,-954.17,0.00021917,2]
[344373850,1733390078995,-500.0,0.00021917,2]
[344373851,1733390079022,-500.0,0.00021917,2]
[344373852,1733390079049,-500.0,0.00021917,2]
[344373853,1733390079077,-500.0,0.00021917,2]
[344373854,1733390079106,-500.0,0.00021917,2]
[344373855,1733390079134,-197.7797191,0.00021917,2]
[344373856,1733390079162,-500.0,0.00021917,2]
[344373857,1733390079191,-500.0,0.00021917,2]
[344373858,1733390079217,-682.87,0.00021917,2]
[344373859,1733390079306,-508.77732719,0.00021917,2]
[344373860,1733390079335,-500.0,0.00021917,2]
[344373861,1733390079363,-501.27487271,0.00021917,2]
[344373862,1733390079390,-500.0,0.00021917,2]
[344373863,1733390079418,-264.55613453,0.00021917,2]
[344373864,1733390079446,-158.94225814,0.00021917,2]
[344373865,1733390079474,-509.78198597,0.00021917,2]
[344373866,1733390079504,-123.02741062,0.00021917,2]
[344373867,1733390079651,-1504.65258938,0.00021917,2]
[344373868,1733390079660,-500.0,0.00021917,2]
[344373869,1733390079669,-500.0,0.00021917,2]
[344373870,1733390079679,-848.65,0.00021917,2]
[344373871,1733390079688,-500.0,0.00021917,2]
[344373872,1733390079698,-500.0,0.00021917,2]
[344373873,1733390079708,-500.0,0.00021917,2]
[344373874,1733390079717,-497.14596091,0.00021917,2]
[344373875,1733390079727,-103.8654625,0.00021917,2]
[344373876,1733390079740,-250.0,0.00021917,2]
[344373877,1733390079753,-302.1045375,0.00021917,2]
[344373878,1733390079762,-500.0,0.00021917,2]
[344373879,1733390079772,-500.0,0.00021917,2]
[344373880,1733390079781,-506.27550184,0.00021917,2]
[344373881,1733390079790,-26.82749731,0.00021917,2]
[344373882,1733390079802,-171.722825,0.00021917,2]
[344373883,1733390079818,-301.44967769,0.00021917,2]
[344373884,1733390079828,-98.55032231,0.00021917,2]
[344373885,1733390079839,-425.71424945,0.00021917,2]
[344373886,1733390079849,-74.28575055,0.00021917,2]
[344373887,1733390079860,-400.0,0.00021917,2]
[344373888,1733390079871,-25.71424945,0.00021917,2]
[344373889,1733390079880,-165.92060303,0.00021917,2]
[344373890,1733390079890,-308.36514752,0.00021917,2]
[344373891,1733390079902,-179.366684,0.00021917,2]
[344373892,1733390079921,-12.26816848,0.00021917,2]
[344373893,1733390079931,-287.73183152,0.00021917,2]
[344373894,1733390079947,-212.26816848,0.00021917,2]
[344373895,1733390079956,-500.0,0.00021917,2]
[344373896,1733390079966,-493.94246389,0.00021917,2]
[344373897,1733390079983,-6.05753611,0.00021917,2]
[344373898,1733390079993,-293.94246389,0.00021917,2]
[344373899,1733390080004,-157.44,0.00021917,2]
[344373900,1733390080016,-48.61753611,0.00021917,2]
[344373901,1733390080025,-451.38246389,0.00021917,2]
[344373902,1733390080037,-48.61753611,0.00021917,2]
[344373903,1733390080046,-451.38246389,0.00021917,2]
[344373904,1733390080057,-48.61753611,0.00021917,2]
[344373905,1733390080067,-115.26078507,0.00021917,2]
[344373906,1733390080079,-202.18739943,0.00021917,2]
[344373907,1733390080089,-297.81260057,0.00021917,2]
[344373908,1733390080110,-202.18739943,0.00021917,2]
[344373909,1733390080120,-298.96448326,0.00021917,2]
[344373910,1733390080132,-263.17551674,0.00021917,2]
[344373911,1733390080143,-236.82448326,0.00021917,2]
[344373912,1733390080159,-263.17551674,0.00021917,2]
[344373913,1733390080169,-236.82448326,0.00021917,2]
[344373914,1733390080249,-263.17551674,0.00021917,2]
[344373915,1733390080259,-236.82448326,0.00021917,2]
[344373916,1733390080271,-263.36170948,0.00021917,2]
[344373917,1733390080280,-236.63829052,0.00021917,2]
[344373918,1733390080292,-272.10020603,0.00021917,2]
[344373919,1733390080301,-227.89979397,0.00021917,2]
[344373920,1733390080313,-272.10020603,0.00021917,2]
[344373921,1733390080322,-227.89979397,0.00021917,2]
[344373922,1733390080334,-272.10020603,0.00021917,2]
[344373923,1733390080343,-227.89979397,0.00021917,2]
[344373924,1733390080354,-272.10020603,0.00021917,2]
[344373925,1733390080363,-227.89979397,0.00021917,2]
[344373926,1733390080375,-272.10020603,0.00021917,2]
[344373927,1733390080384,-376.25680236,0.00021917,2]
[344373928,1733390080399,-123.74319764,0.00021917,2]
[344373929,1733390080409,-376.25680236,0.00021917,2]
[344373930,1733390080426,-123.74319764,0.00021917,2]
[344373931,1733390080435,-376.25680236,0.00021917,2]
[344373932,1733390080448,-123.74319764,0.00021917,2]
[344373933,1733390080457,-376.25680236,0.00021917,2]
[344373934,1733390080469,-123.74319764,0.00021917,2]
[344373935,1733390080478,-71.5217206,0.00021917,2]
[344373936,1733390080489,-473.41651863,0.00021917,2]
[344373937,1733390080501,-26.58348137,0.00021917,2]
[344373938,1733390080512,-473.41651863,0.00021917,2]
[344373939,1733390080521,-26.58348137,0.00021917,2]
[344373940,1733390080533,-473.41651863,0.00021917,2]
[344373941,1733390080543,-26.58348137,0.00021917,2]
[344373942,1733390080555,-473.41651863,0.00021917,2]
[344373943,1733390080565,-108.45531898,0.00021917,2]
[344373944,1733390080576,-391.54468102,0.00021917,2]
[344373945,1733390080586,-108.45531898,0.00021917,2]
[344373946,1733390080597,-391.54468102,0.00021917,2]
[344373947,1733390080606,-108.45531898,0.00021917,2]
[344373948,1733390080617,-391.54468102,0.00021917,2]
[344373949,1733390080626,-108.45531898,0.00021917,2]
[344373950,1733390080643,-391.54468102,0.00021917,2]
[344373951,1733390080653,-108.45531898,0.00021917,2]
[344373952,1733390080664,-391.54468102,0.00021917,2]
[344373953,1733390080674,-108.45531898,0.00021917,2]
[344373954,1733390080686,-391.54468102,0.00021917,2]
[344373955,1733390080696,-108.45531898,0.00021917,2]
[344373956,1733390080708,-391.54468102,0.00021917,2]
[344373957,1733390080717,-93.93784453,0.00021917,2]
[344373958,1733390080729,-457.72215547,0.00021917,2]
[344373959,1733390080738,-42.27784453,0.00021917,2]
[344373960,1733390080752,-457.72215547,0.00021917,2]
[344373961,1733390080761,-42.27784453,0.00021917,2]
[344373962,1733390080773,-457.72215547,0.00021917,2]
[344373963,1733390080782,-42.27784453,0.00021917,2]
[344373964,1733390080793,-500.0,0.00021917,2]
[344373965,1733390080804,-55.70215547,0.00021917,2]
[344373966,1733390080814,-444.29784453,0.00021917,2]
[344373967,1733390080829,-55.70215547,0.00021917,2]
[344373968,1733390080838,-444.29784453,0.00021917,2]
[344373969,1733390080849,-55.70215547,0.00021917,2]
[344373970,1733390080858,-444.29784453,0.00021917,2]
[344373971,1733390080869,-55.70215547,0.00021917,2]
[344373972,1733390080879,-444.29784453,0.00021917,2]
[344373973,1733390080900,-68.00500566,0.00021917,2]
[344373974,1733390080910,-431.99499434,0.00021917,2]
[344373975,1733390080921,-68.00500566,0.00021917,2]
[344373976,1733390080931,-431.99499434,0.00021917,2]
[344373977,1733390080942,-105.42303196,0.00021917,2]
[344373978,1733390080951,-394.57696804,0.00021917,2]
[344373979,1733390080967,-108.26270572,0.00021917,2]
[344373980,1733390080976,-391.73729428,0.00021917,2]
[344373981,1733390080988,-194.39863748,0.00021917,2]
[344373982,1733390081000,-305.60136252,0.00021917,2]
[344373983,1733390081012,-197.31278181,0.00021917,2]
[344373984,1733390081021,-302.68721819,0.00021917,2]
[344373985,1733390081033,-210.61805585,0.00021917,2]
[344373986,1733390081043,-289.38194415,0.00021917,2]
[344373987,1733390081054,-210.61805585,0.00021917,2]
[344373988,1733390081064,-289.38194415,0.00021917,2]
[344373989,1733390081075,-210.61805585,0.00021917,2]
[344373990,1733390081088,-289.38194415,0.00021917,2]
[344373991,1733390081101,-230.86386571,0.00021917,2]
[344373992,1733390081110,-269.13613429,0.00021917,2]
[344373993,1733390081123,-246.05486067,0.00021917,2]
[344373994,1733390081131,-253.94513933,0.00021917,2]
[344373995,1733390081143,-256.85086751,0.00021917,2]
[344373996,1733390081152,-243.14913249,0.00021917,2]
[344373997,1733390081164,-362.77542006,0.00021917,2]
[344373998,1733390081173,-137.22457994,0.00021917,2]
[344373999,1733390081188,-500.0,0.00021917,2]
[344374000,1733390081199,-500.0,0.00021917,2]
[344374001,1733390081211,-500.0,0.00021917,2]
[344374002,1733390081222,-245.74585515,0.00021917,2]
[344374003,1733390081233,-95.62956491,0.00021917,2]
[344374004,1733390081244,-404.37043509,0.00021917,2]
[344374005,1733390081312,-107.91405993,0.00021917,2]
[344374006,1733390081321,-392.08594007,0.00021917,2]
[344374007,1733390081332,-107.91405993,0.00021917,2]
[344374008,1733390081342,-392.08594007,0.00021917,2]
[344374009,1733390081354,-111.39580419,0.00021917,2]
[344374010,1733390081363,-388.60419581,0.00021917,2]
[344374011,1733390081375,-111.39580419,0.00021917,2]
[344374012,1733390081384,-264.40456085,0.00021917,2]
[344374013,1733390081395,-235.59543915,0.00021917,2]
[344374014,1733390081404,-264.40456085,0.00021917,2]
[344374015,1733390081419,-389.68543915,0.00021917,2]
[344374016,1733390081428,-110.31456085,0.00021917,2]
[344374017,1733390081440,-410.51543915,0.00021917,2]
[344374018,1733390081449,-94.30349517,0.00021917,2]
[344374019,1733390081461,-405.69650483,0.00021917,2]
[344374020,1733390081470,-94.30349517,0.00021917,2]
[344374021,1733390081482,-405.69650483,0.00021917,2]
[344374022,1733390081491,-94.30349517,0.00021917,2]
[344374023,1733390081505,-500.0,0.00021917,2]
[344374024,1733390081523,-500.0,0.00021917,2]
[344374025,1733390081582,-151.0,0.00021917,2]
[344374026,1733390081593,-151.0,0.00021917,2]
[344374027,1733390081604,-4107.49650483,0.00021917,2]
[344374028,1733390081614,-500.0,0.00021917,2]
[344374029,1733390081623,-500.0,0.00021917,2]
[344374030,1733390081632,-500.0,0.00021917,2]
[344374031,1733390081642,-665.17,0.00021917,2]
[344374032,1733390081652,-518.40868407,0.00021917,2]
[344374033,1733390081661,-36.01464168,0.00021917,2]
[344374034,1733390081673,-660.62535832,0.00021917,2]
[344374035,1733390081681,-500.0,0.00021917,2]
[344374036,1733390081691,-508.24965315,0.00021917,2]
[344374037,1733390081700,-500.0,0.00021917,2]
[344374038,1733390081709,-500.0,0.00021917,2]
[344374039,1733390081718,-852.22,0.00021917,2]
[344374040,1733390081727,-1154.87,0.00021917,2]
[344374041,1733390081737,-500.0,0.00021917,2]